bitfinex/quotes_BTCUSD_20250525
["timestamp","ask_amount","ask_price","bid_price","bid_amount"]
[1748201147049,0.03715518,107490.0,107480.0,2.44203252]
[1748201147475,0.03715518,107490.0,107480.0,2.45151643]
[1748201147692,0.05255518,107490.0,107480.0,1.67341825]
[1748201147876,0.06185793,107490.0,107480.0,1.67341825]
[1748201148113,0.07116086,107490.0,107480.0,1.67341825]
[1748201148317,0.06185793,107490.0,107480.0,1.67341825]
[1748201148896,0.06185793,107490.0,107480.0,1.52473825]
[1748201149109,0.24792287,107490.0,107480.0,1.6268998]
[1748201149316,0.24792287,107490.0,107480.0,1.1382198]
[1748201149516,0.24792287,107490.0,107480.0,1.29620385]
[1748201149814,0.24792287,107490.0,107480.0,1.63620385]
[1748201150077,0.24792287,107490.0,107480.0,1.64550773]
[1748201151361,0.24792287,107490.0,107480.0,1.61578846]
[1748201152281,0.23862012,107490.0,107480.0,1.60648458]
[1748201153498,0.23862012,107490.0,107480.0,1.61575427]
[1748201153849,0.22931719,107490.0,107480.0,1.61575427]
[1748201154232,0.22931719,107490.0,107480.0,1.62505815]
[1748201154486,0.22931719,107490.0,107480.0,1.61575427]
[1748201165239,0.22931719,107490.0,107480.0,0.83765609]
[1748201165420,0.22931719,107490.0,107480.0,1.61575427]
[1748201165983,0.22931719,107490.0,107480.0,1.62505815]
[1748201166106,0.21391719,107490.0,107480.0,1.63436194]
[1748201169488,0.21391719,107490.0,107480.0,1.62505815]
[1748201173877,0.21391719,107490.0,107480.0,1.26238512]
[1748201174041,0.22911719,107490.0,107480.0,1.59718625]
[1748201174413,0.22911719,107490.0,107480.0,1.6064903]
[1748201174782,0.22911719,107490.0,107480.0,1.61579418]
[1748201177132,0.22911719,107490.0,107480.0,1.46707418]
[1748201177340,0.22911719,107490.0,107480.0,1.32155956]
[1748201178037,0.22911719,107490.0,107480.0,1.50764069]
[1748201179459,0.22911719,107490.0,107480.0,1.51694474]
[1748201184722,0.21391719,107490.0,107480.0,1.51694474]
[1748201187950,0.204614,107490.0,107480.0,1.50764069]
[1748201188157,0.220514,107490.0,107480.0,1.50764069]
[1748201189277,0.220514,107490.0,107480.0,1.51694474]
[1748201190318,0.220514,107490.0,107480.0,0.54346138]
[1748201190590,0.220514,107490.0,107480.0,1.50764069]
[1748201192005,0.220514,107490.0,107480.0,0.39474138]
[1748201192318,0.220514,107490.0,107480.0,1.32155956]
[1748201193414,0.220514,107490.0,107480.0,1.50764069]
[1748201194458,0.220514,107490.0,107480.0,1.32155956]
[1748201195646,0.220514,107490.0,107480.0,0.54346138]
[1748201195872,0.220514,107490.0,107480.0,1.32155956]
[1748201196975,0.204614,107490.0,107480.0,1.50764069]
[1748201197226,0.204614,107490.0,107480.0,1.33086361]
[1748201197496,0.204614,107490.0,107480.0,1.32155956]
[1748201197897,0.188114,107490.0,107480.0,1.50764069]
[1748201204646,0.188114,107490.0,107480.0,1.32155956]
[1748201204844,0.188114,107490.0,107480.0,1.31207565]
[1748201207529,0.188114,107490.0,107480.0,0.38525747]
[1748201207705,0.204214,107490.0,107480.0,1.31207565]
[1748201208314,0.204214,107490.0,107480.0,1.49815678]
[1748201208485,0.188114,107490.0,107480.0,1.49815678]
[1748201214071,0.188114,107490.0,107480.0,1.16335565]
[1748201214314,0.221314,107490.0,107480.0,1.31207565]
[1748201215327,0.204714,107490.0,107480.0,1.31207565]
[1748201215821,0.19741719,107490.0,107480.0,1.50746075]
[1748201216029,0.19741719,107490.0,107480.0,1.53926075]
[1748201216185,0.19741719,107490.0,107480.0,1.6381101]
[1748201216398,0.19741719,107490.0,107480.0,1.62880631]
[1748201219748,0.19741719,107490.0,107480.0,1.61290631]
[1748201220810,0.19741719,107490.0,107480.0,1.62221019]
[1748201221962,0.01135286,107490.0,107480.0,1.63151381]
[1748201222175,0.01135277,107490.0,107480.0,2.43471544]
[1748201222390,0.02995837,107490.0,107480.0,2.43471544]
[1748201222609,0.02995828,107490.0,107480.0,2.43471544]
[1748201223242,0.02995828,107490.0,107480.0,1.65661726]
[1748201225596,0.02995819,107490.0,107480.0,2.43471544]
[1748201226245,0.02065544,107490.0,107480.0,2.43471544]
[1748201227319,0.02995837,107490.0,107480.0,2.43471544]
[1748201228273,0.02995837,107490.0,107480.0,1.65661726]
[1748201231200,0.03926138,107490.0,107480.0,1.50789726]
[1748201231347,0.03926138,107490.0,107480.0,1.65661726]
[1748201237744,0.03926138,107490.0,107480.0,2.43471544]
[1748201239955,0.03926138,107490.0,107480.0,1.63925679]
[1748201240148,0.03926138,107490.0,107480.0,1.65661479]
[1748201241071,0.03926138,107490.0,107480.0,0.87851661]
[1748201241294,0.03926138,107490.0,107480.0,1.65661479]
[1748201242705,0.03926138,107490.0,107480.0,2.43471297]
[1748201245375,0.02995837,107490.0,107480.0,2.43471297]
[1748201246221,0.02995837,107490.0,107480.0,1.65661479]
[1748201246627,0.03926138,107490.0,107480.0,1.64081479]
[1748201247052,0.23462829,107490.0,107480.0,1.47619479]
[1748201247234,0.03926138,107490.0,107480.0,1.62491479]
[1748201252857,0.2405258,107490.0,107480.0,1.45758772]
[1748201252994,0.2405258,107490.0,107480.0,1.62487504]
[1748201258986,0.2384202,107490.0,107480.0,1.16335318]
[1748201259196,0.2413202,107490.0,107480.0,1.31203318]
[1748201261770,0.2413202,107490.0,107480.0,0.533935]
[1748201261979,0.2413202,107490.0,107480.0,1.31203318]
[1748201275039,0.2413202,107490.0,107480.0,1.49811431]
[1748201275269,0.2413202,107490.0,107480.0,1.50741836]
[1748201275469,0.2248202,107490.0,107480.0,1.50741836]
[1748201279682,0.2248202,107490.0,107480.0,1.49811431]
[1748201280343,0.2248202,107490.0,107480.0,1.50741836]
[1748201281090,0.2248202,107490.0,107480.0,1.51672233]
[1748201281299,0.2096202,107490.0,107480.0,1.52602621]
[1748201281513,0.2096202,107490.0,107480.0,1.53533]
[1748201281730,0.2096202,107490.0,107480.0,1.55103]
[1748201284661,0.2096202,107490.0,107480.0,1.56033371]
[1748201285236,0.2096202,107490.0,107480.0,1.57603284]
[1748201286421,0.2096202,107490.0,107480.0,1.56033284]
[1748201287473,0.2096202,107490.0,107480.0,1.55102931]
[1748201289441,0.2096202,107490.0,107480.0,1.52606569]
[1748201291064,0.2096202,107490.0,107480.0,1.51676198]
[1748201291294,0.20031719,107490.0,107480.0,1.50745819]
[1748201291557,0.01425268,107490.0,107480.0,1.50745819]
[1748201291768,0.02355578,107490.0,107480.0,1.54116535]
[1748201292029,0.02355578,107490.0,107480.0,1.55646535]
[1748201292657,0.20961959,107490.0,107480.0,1.55646535]
[1748201293068,0.2189226,107490.0,107480.0,1.55646535]
[1748201293757,0.2179226,107490.0,107480.0,1.55646535]
[1748201293998,0.22722579,107490.0,107480.0,1.55646535]
[1748201295241,0.05046473,107490.0,107480.0,1.55646535]
[1748201297176,0.23652854,107490.0,107480.0,1.55646535]
[1748201297834,0.00395019,107490.0,107480.0,2.42410909]
[1748201298044,0.01325268,107490.0,107480.0,2.42410909]
[1748201298268,0.0132526,107490.0,107480.0,2.42410909]
[1748201299750,0.0132526,107490.0,107480.0,1.64601091]
[1748201300450,0.0103526,107490.0,107480.0,1.64601091]
[1748201301442,0.01965518,107490.0,107480.0,1.64601091]
[1748201301942,0.01965509,107490.0,107480.0,1.64601091]
[1748201303419,0.02895776,107490.0,107480.0,1.64601091]
[1748201304051,0.02895767,107490.0,107480.0,1.64601091]
[1748201304486,0.02895767,107490.0,107480.0,2.42410909]
[1748201306295,0.03826042,107490.0,107480.0,2.42410909]
[1748201307086,0.03826034,107490.0,107480.0,2.42410909]
[1748201308637,0.02895793,107490.0,107480.0,2.42410909]
[1748201309132,0.03826068,107490.0,107480.0,2.42410909]
[1748201311293,0.01965526,107490.0,107480.0,2.42410909]
[1748201311483,0.02895801,107490.0,107480.0,2.42410909]
[1748201313973,0.02895801,107490.0,107480.0,2.40880909]
[1748201315549,0.02895801,107490.0,107480.0,2.42480909]
[1748201318452,0.03826094,107490.0,107480.0,2.42480909]
[1748201318937,0.03826094,107490.0,107480.0,2.40880909]
[1748201320071,0.04756395,107490.0,107480.0,2.40876909]
[1748201320284,0.03826094,107490.0,107480.0,2.40876909]
[1748201320508,0.02895801,107490.0,107480.0,2.40876909]
[1748201320719,0.03826094,107490.0,107480.0,2.40876909]
[1748201322606,0.04756395,107490.0,107480.0,2.40876909]
[1748201325334,0.03826094,107490.0,107480.0,2.40876909]
[1748201326430,0.22432475,107490.0,107480.0,2.40876909]
[1748201326633,0.23362855,107490.0,107480.0,1.61557108]
[1748201326839,0.03826155,107490.0,107480.0,1.62487453]
[1748201327799,0.22432545,107490.0,107480.0,1.62487453]
[1748201328192,0.03826146,107490.0,107480.0,1.62487453]
[1748201328396,0.03826146,107490.0,107480.0,2.40297271]
[1748201330716,0.23362837,107490.0,107480.0,2.40297271]
[1748201330918,0.23362837,107490.0,107480.0,1.62487453]
[1748201331130,0.03826146,107490.0,107480.0,1.62487453]
[1748201331829,0.22432527,107490.0,107480.0,1.62487453]
[1748201332085,0.03826146,107490.0,107480.0,1.62487453]
[1748201335513,0.22432527,107490.0,107480.0,1.62487453]
[1748201335721,0.24962846,107490.0,107480.0,1.61557108]
[1748201335857,0.24962846,107490.0,107480.0,1.62487461]
[1748201336058,0.05426146,107490.0,107480.0,1.63417806]
[1748201336304,0.24962837,107490.0,107480.0,1.63417806]
[1748201336512,0.04756456,107490.0,107480.0,1.63417806]
[1748201336716,0.23362898,107490.0,107480.0,1.63417806]
[1748201337652,0.04756517,107490.0,107480.0,1.63417806]
[1748201338380,0.03826198,107490.0,107480.0,1.63417806]
[1748201338712,0.02895888,107490.0,107480.0,1.63417806]
[1748201339258,0.03826198,107490.0,107480.0,1.63417806]
[1748201339731,0.23362898,107490.0,107480.0,1.63417806]
[1748201340106,0.22432623,107490.0,107480.0,1.62487461]
[1748201340529,0.01965613,107490.0,107480.0,1.63417806]
[1748201340700,0.20571994,107490.0,107480.0,1.63417806]
[1748201340906,0.21502304,107490.0,107480.0,1.63417806]
[1748201341282,0.21502304,107490.0,107480.0,1.60626746]
[1748201341483,0.23082304,107490.0,107480.0,1.60626746]
[1748201341683,0.04475923,107490.0,107480.0,1.61557091]
[1748201341892,0.23082304,107490.0,107480.0,1.61557091]
[1748201342090,0.04475923,107490.0,107480.0,1.61557091]
[1748201342288,0.02895811,107490.0,107480.0,2.39366909]
[1748201342513,0.03826112,107490.0,107480.0,2.40916909]
[1748201342719,0.02895785,107490.0,107480.0,2.42536909]
[1748201342980,0.03826069,107490.0,107480.0,2.42536909]
[1748201343780,0.04756362,107490.0,107480.0,2.42536909]
[1748201345620,0.03826069,107490.0,107480.0,2.42536909]
[1748201348985,0.0475637,107490.0,107480.0,0.86917273]
[1748201349195,0.0475637,107490.0,107480.0,2.42536909]
[1748201349414,0.04756362,107490.0,107480.0,2.42536909]
[1748201350018,0.04756362,107490.0,107480.0,2.40916909]
[1748201354555,0.03826069,107490.0,107480.0,2.40916909]
[1748201354754,0.0475637,107490.0,107480.0,2.40916909]
[1748201354876,0.03826069,107490.0,107480.0,2.40916909]
[1748201356272,0.02895785,107490.0,107480.0,2.40916909]
[1748201356482,0.02895785,107490.0,107480.0,2.42486909]
[1748201358429,0.02895785,107490.0,107480.0,2.4248866]
[1748201359522,0.03826069,107490.0,107480.0,2.4248866]
[1748201359754,0.00105019,107490.0,107480.0,2.4248866]
[1748201373213,0.00105019,107490.0,107480.0,0.86869024]
[1748201373420,0.00105019,107490.0,107480.0,2.4248866]
[1748201384627,0.00105019,107490.0,107480.0,2.45460587]
[1748201389426,0.0099395,107500.0,107490.0,0.55397233]
[1748201389703,0.002,107510.0,107500.0,2.14204878]
[1748201389931,0.00205019,107510.0,107500.0,2.38027434]
[1748201390142,0.00205019,107510.0,107500.0,2.42554285]
[1748201390581,0.00205019,107510.0,107500.0,2.40816734]
[1748201390793,0.00205019,107510.0,107500.0,2.42550013]
[1748201392378,0.00205019,107510.0,107500.0,2.42650013]
[1748201398914,0.0049,107530.0,107520.0,0.0279009]
[1748201399117,0.00250197,107530.0,107520.0,3.16945798]
[1748201399333,0.00250197,107530.0,107520.0,2.40636758]
[1748201399547,0.00250197,107530.0,107520.0,2.43425458]
[1748201400736,0.00250197,107530.0,107520.0,2.43525458]
[1748201403517,0.00250197,107530.0,107520.0,2.25444379]
[1748201404202,0.00250197,107530.0,107520.0,2.28234469]
[1748201404836,0.00250197,107530.0,107520.0,0.72614833]
[1748201405098,0.00250197,107530.0,107520.0,2.26600469]
[1748201405755,0.01780197,107530.0,107520.0,2.26600469]
[1748201406220,0.01780197,107530.0,107520.0,2.11736469]
[1748201406393,0.01780197,107530.0,107520.0,2.26600469]
[1748201406748,0.01780197,107530.0,107520.0,2.11736469]
[1748201406948,0.03400197,107530.0,107520.0,2.26600469]
[1748201407460,0.00250197,107530.0,107520.0,2.26600469]
[1748201407648,0.01780197,107530.0,107520.0,2.26600469]
[1748201408275,0.00250197,107530.0,107520.0,2.26600469]
[1748201409108,0.00250197,107530.0,107520.0,2.11736469]
[1748201409323,0.01780197,107530.0,107520.0,2.26600469]
[1748201409822,0.027101,107530.0,107520.0,2.11736469]
[1748201410027,0.027101,107530.0,107520.0,2.26600469]
[1748201410831,0.027101,107530.0,107520.0,2.11736469]
[1748201411074,0.027101,107530.0,107520.0,2.26600469]
[1748201413088,0.01180092,107530.0,107520.0,2.26600469]
[1748201415548,0.00250197,107530.0,107520.0,2.26600469]
[1748201416624,0.00250197,107530.0,107520.0,3.07490287]
[1748201416840,0.034,107550.0,107540.0,0.55387285]
[1748201417060,0.01,107560.0,107550.0,0.55385296]
[1748201417290,0.01,107560.0,107550.0,2.21529488]
[1748201417528,0.01005018,107560.0,107550.0,2.24317588]
[1748201417766,0.01005018,107560.0,107550.0,2.26050867]
[1748201418009,0.01005018,107560.0,107550.0,2.39344867]
[1748201418215,0.01934653,107560.0,107550.0,2.24480867]
[1748201418431,0.01005018,107560.0,107550.0,3.02290685]
[1748201418636,0.25691307,107580.0,107570.0,0.54451754]
[1748201418878,0.07105506,107580.0,107570.0,1.57009694]
[1748201419088,0.06175983,107580.0,107570.0,1.57009694]
[1748201419428,0.07105506,107580.0,107570.0,1.58742973]
[1748201419618,0.04317015,107580.0,107570.0,2.39340691]
[1748201419913,0.05246486,107580.0,107570.0,2.39340691]
[1748201420083,0.06275974,107580.0,107570.0,1.52750388]
[1748201420306,0.05346486,107580.0,107570.0,1.52750388]
[1748201420710,0.05346486,107580.0,107570.0,1.53670855]
[1748201420914,0.01217015,107580.0,107570.0,1.56900855]
[1748201422785,0.01117015,107580.0,107570.0,1.57000855]
[1748201423373,0.01117015,107580.0,107570.0,1.55340855]
[1748201423582,0.01117015,107580.0,107570.0,1.53770855]
[1748201424460,0.01117015,107580.0,107570.0,1.55330855]
[1748201425120,0.01117015,107580.0,107570.0,1.53770855]
[1748201425325,0.01117015,107580.0,107570.0,1.69058855]
[1748201426375,0.01117015,107580.0,107570.0,1.00029522]
[1748201426588,0.01117015,107580.0,107570.0,1.69058855]
[1748201426939,0.01117015,107580.0,107570.0,1.38906855]
[1748201427163,0.25726322,107580.0,107570.0,1.37047697]
[1748201427375,0.25726322,107580.0,107570.0,1.16978998]
[1748201427586,0.07135506,107580.0,107570.0,1.52838139]
[1748201427799,0.07135506,107580.0,107570.0,1.18838139]
[1748201428000,0.07135506,107580.0,107570.0,1.52838139]
[1748201430383,0.07135497,107580.0,107570.0,1.52838139]
[1748201432235,0.07135497,107580.0,107570.0,1.37978139]
[1748201432437,0.07135497,107580.0,107570.0,1.52834139]
[1748201432640,0.0806502,107580.0,107570.0,1.52834139]
[1748201432911,0.27585376,107580.0,107570.0,1.52834139]
[1748201434001,0.24796894,107580.0,107570.0,1.05783079]
[1748201434209,0.24796894,107580.0,107570.0,1.25305232]
[1748201434413,0.24796894,107580.0,107570.0,1.40161241]
[1748201434620,0.24796894,107580.0,107570.0,1.2623485]
[1748201434836,0.01117015,107580.0,107570.0,1.42950008]
[1748201435095,0.02046495,107580.0,107570.0,1.51904564]
[1748201435321,0.03905497,107580.0,107570.0,1.51904564]
[1748201436176,0.02046495,107580.0,107570.0,1.51904564]
[1748201436691,0.02975992,107580.0,107570.0,1.51904564]
[1748201436840,0.02976001,107580.0,107570.0,1.51904564]
[1748201437221,0.02046495,107580.0,107570.0,1.51904564]
[1748201438826,0.02976001,107580.0,107570.0,1.51904564]
[1748201439419,0.01117015,107580.0,107570.0,1.51904564]
[1748201439839,0.01117015,107580.0,107570.0,1.54692064]
[1748201441843,0.3,107600.0,107580.0,0.0154]
[1748201442087,0.06534655,107610.0,107600.0,0.55375359]
[1748201442303,0.05085586,107610.0,107600.0,1.24404692]
[1748201442519,0.06944054,107610.0,107600.0,1.24404692]
[1748201442735,0.07873318,107610.0,107600.0,1.24404692]
[1748201443175,0.08273318,107610.0,107600.0,1.24404692]
[1748201443801,0.07054054,107610.0,107600.0,1.24404692]
[1748201444015,0.06124807,107610.0,107600.0,1.24404692]
[1748201444218,0.04494807,107610.0,107600.0,1.24404692]
[1748201444429,0.07983309,107610.0,107600.0,1.24404692]
[1748201444849,0.08083309,107610.0,107600.0,1.24404692]
[1748201445204,0.07983309,107610.0,107600.0,1.24404692]
[1748201445409,0.07583309,107610.0,107600.0,1.24404692]
[1748201445608,0.07783309,107610.0,107600.0,1.24404692]
[1748201446679,0.077833,107610.0,107600.0,1.24404692]
[1748201446873,0.06854045,107610.0,107600.0,1.24404692]
[1748201447084,0.07783309,107610.0,107600.0,1.24404692]
[1748201447485,0.077833,107610.0,107600.0,1.24404692]
[1748201447723,0.03674045,107610.0,107600.0,1.24404692]
[1748201447929,0.046033,107610.0,107600.0,1.24404692]
[1748201448147,0.04603291,107610.0,107600.0,1.24404692]
[1748201449655,0.04603291,107610.0,107600.0,0.55375359]
[1748201449991,0.04603291,107610.0,107600.0,1.24404692]
[1748201450192,0.05532555,107610.0,107600.0,1.24404692]
[1748201450819,0.01815586,107610.0,107600.0,1.25984692]
[1748201451026,0.01815586,107610.0,107600.0,1.34939248]
[1748201451248,0.01815586,107610.0,107600.0,2.05588581]
[1748201451454,0.01815586,107610.0,107600.0,2.08375381]
[1748201452094,0.01615586,107610.0,107600.0,2.08375381]
[1748201452307,0.01615586,107610.0,107600.0,2.08575381]
[1748201452526,0.01615586,107610.0,107600.0,2.08775381]
[1748201452953,0.01615586,107610.0,107600.0,2.05575381]
[1748201453387,0.01615586,107610.0,107600.0,1.36546048]
[1748201453801,0.01615586,107610.0,107600.0,1.38271442]
[1748201454031,0.01615586,107610.0,107600.0,1.39931442]
[1748201455561,0.01615586,107610.0,107600.0,2.08960775]
[1748201455763,0.01615586,107610.0,107600.0,1.39931442]
[1748201455982,0.01615586,107610.0,107600.0,1.38271442]
[1748201456432,0.08582546,107610.0,107600.0,1.38271442]
[1748201456568,0.08582537,107610.0,107600.0,1.53127442]
[1748201458278,0.07653273,107610.0,107600.0,1.53127442]
[1748201458889,0.08582537,107610.0,107600.0,1.53127442]
[1748201459092,0.28097443,107610.0,107600.0,1.38271442]
[1748201459277,0.08582537,107610.0,107600.0,1.53127442]
[1748201459775,0.28097451,107610.0,107600.0,1.38271459]
[1748201459992,0.08582537,107610.0,107600.0,1.54982082]
[1748201460423,0.0951181,107610.0,107600.0,1.54982082]
[1748201460625,0.28097521,107610.0,107600.0,1.54052775]
[1748201462042,0.07653334,107610.0,107600.0,1.54982082]
[1748201462228,0.2716824,107610.0,107600.0,1.54052775]
[1748201462402,0.28097521,107610.0,107600.0,1.54052775]
[1748201462598,0.26239037,107610.0,107600.0,0.38912194]
[1748201462770,0.25309773,107610.0,107600.0,0.69564754]
[1748201462971,0.25309773,107610.0,107600.0,0.70494104]
[1748201463177,0.25309773,107610.0,107600.0,0.69564754]
[1748201463381,0.25309773,107610.0,107600.0,1.39523437]
[1748201463624,0.25309773,107610.0,107600.0,1.05154727]
[1748201463825,0.25309773,107610.0,107600.0,0.50977394]
[1748201463826,0.243805,107610.0,107600.0,0.50977394]
[1748201463974,0.25834585,107610.0,107600.0,0.36125394]
[1748201464183,0.25834585,107610.0,107600.0,0.50977394]
[1748201466039,0.25834585,107610.0,107600.0,0.36125394]
[1748201466239,0.25834585,107610.0,107600.0,0.50977394]
[1748201468616,0.25834585,107610.0,107600.0,0.36125394]
[1748201478442,0.55834585,107610.0,107600.0,0.36125394]
[1748201481181,0.55834585,107610.0,107600.0,1.05154727]
[1748201481809,0.55834585,107610.0,107600.0,0.36125394]
[1748201487891,0.55834585,107610.0,107600.0,0.35925394]
[1748201488111,0.211305,107610.0,107600.0,0.5258736]
[1748201488328,0.211305,107610.0,107600.0,1.03029333]
[1748201488540,0.211305,107610.0,107600.0,1.03129333]
[1748201489191,0.211305,107610.0,107600.0,1.22646061]
[1748201490913,0.211305,107610.0,107600.0,1.04058701]
[1748201491539,0.211305,107610.0,107600.0,1.22646061]
[1748201491788,0.211305,107610.0,107600.0,1.25886061]
[1748201492001,0.22059755,107610.0,107600.0,0.5778607]
[1748201492212,0.22059755,107610.0,107600.0,1.26815403]
[1748201492410,0.22059755,107610.0,107600.0,1.25886061]
[1748201492622,0.211305,107610.0,107600.0,1.2520542]
[1748201493060,0.21655304,107610.0,107600.0,0.341]
[1748201493277,0.24775304,107610.0,107600.0,0.341]
[1748201498138,0.24775304,107610.0,107600.0,1.03129333]
[1748201498302,0.21655304,107610.0,107600.0,1.03129333]
[1748201499726,0.23185304,107610.0,107600.0,1.03129333]
[1748201501132,0.24785304,107610.0,107600.0,1.03129333]
[1748201503365,0.21655304,107610.0,107600.0,1.03129333]
[1748201503796,0.21655304,107610.0,107600.0,0.341]
[1748201504008,0.23255304,107610.0,107600.0,1.03129333]
[1748201505956,0.23255304,107610.0,107600.0,0.341]
[1748201506168,0.23255304,107610.0,107600.0,1.03129333]
[1748201508686,0.24785304,107610.0,107600.0,0.341]
[1748201509250,0.02544807,107610.0,107600.0,1.32457873]
[1748201509529,0.03474036,107610.0,107600.0,1.36719248]
[1748201509947,0.044033,107610.0,107600.0,1.39506348]
[1748201510148,0.04403291,107610.0,107600.0,1.39506348]
[1748201511098,0.05332555,107610.0,107600.0,1.39506348]
[1748201511718,0.04403291,107610.0,107600.0,1.39506348]
[1748201512137,0.04403291,107610.0,107600.0,0.70477015]
[1748201512327,0.05332555,107610.0,107600.0,1.39506348]
[1748201513358,0.06261828,107610.0,107600.0,1.39506348]
[1748201516331,0.24847461,107610.0,107600.0,1.39506348]
[1748201516836,0.24847461,107610.0,107600.0,1.39422423]
[1748201517423,0.24847461,107610.0,107600.0,1.38493116]
[1748201517674,0.22989037,107610.0,107600.0,1.24419868]
[1748201517887,0.22989037,107610.0,107600.0,1.39275868]
[1748201518090,0.22989037,107610.0,107600.0,1.40205236]
[1748201518213,0.22989037,107610.0,107600.0,1.41134586]
[1748201519105,0.22059773,107610.0,107600.0,1.41134586]
[1748201519859,0.23589773,107610.0,107600.0,1.41134586]
[1748201520571,0.23589773,107610.0,107600.0,1.40205236]
[1748201520780,0.20201219,107610.0,107600.0,1.20688508]
[1748201520962,0.21731219,107610.0,107600.0,0.51659175]
[1748201521217,0.23351219,107610.0,107600.0,1.20688508]
[1748201522020,0.21731219,107610.0,107600.0,1.40205227]
[1748201522938,0.23351219,107610.0,107600.0,1.40205227]
[1748201523368,0.21731219,107610.0,107600.0,1.40205227]
[1748201524539,0.20201219,107610.0,107600.0,1.41134577]
[1748201527068,0.211305,107610.0,107600.0,1.41134577]
[1748201528099,0.22059755,107610.0,107600.0,1.41134577]
[1748201528918,0.22059755,107610.0,107600.0,1.26278577]
[1748201529098,0.22059755,107610.0,107600.0,1.41134577]
[1748201532893,0.22059755,107610.0,107600.0,1.39275868]
[1748201533106,0.22059755,107610.0,107600.0,1.41134577]
[1748201535710,0.22059755,107610.0,107600.0,1.41064376]
[1748201539967,0.22059755,107610.0,107600.0,1.49665335]
[1748201542221,0.22059755,107610.0,107600.0,1.15819461]
[1748201544414,0.22059755,107610.0,107600.0,0.95373392]
[1748201544600,0.20201219,107610.0,107600.0,0.95373392]
[1748201545673,0.22059755,107610.0,107600.0,1.94160394]
[1748201545886,0.22059755,107610.0,107600.0,1.95089736]
[1748201547681,0.22059755,107610.0,107600.0,1.17459444]
[1748201552312,0.22059755,107610.0,107600.0,0.99369743]
[1748201553769,0.22059755,107610.0,107600.0,1.33369743]
[1748201554660,0.22059755,107610.0,107600.0,1.34299076]
[1748201554900,0.22059755,107610.0,107600.0,1.352284]
[1748201555500,0.22059755,107610.0,107600.0,1.335884]
[1748201557081,0.22059755,107610.0,107600.0,1.351684]
[1748201557286,0.01615586,107610.0,107600.0,2.15387999]
[1748201557490,0.02544807,107610.0,107600.0,2.24342555]
[1748201557695,0.02544789,107610.0,107600.0,2.24342555]
[1748201557897,0.03474018,107610.0,107600.0,2.24342555]
[1748201558279,0.03474018,107610.0,107600.0,0.69081971]
[1748201558930,0.03474018,107610.0,107600.0,2.24342555]
[1748201560364,0.02544789,107610.0,107600.0,2.24342555]
[1748201560587,0.01615586,107610.0,107600.0,2.24342555]
[1748201560797,0.02544807,107610.0,107600.0,2.24342555]
[1748201561013,0.01615586,107610.0,107600.0,2.24342555]
[1748201561420,0.02544789,107610.0,107600.0,2.24342555]
[1748201561638,0.01615586,107610.0,107600.0,2.24342555]
[1748201562080,0.02544789,107610.0,107600.0,2.24342555]
[1748201563315,0.01615586,107610.0,107600.0,2.24342555]
[1748201565452,0.01615586,107610.0,107600.0,2.27129355]
[1748201566247,0.02544798,107610.0,107600.0,2.27129355]
[1748201568829,0.01615586,107610.0,107600.0,2.27129355]
[1748201569043,0.02544789,107610.0,107600.0,2.27129355]
[1748201569680,0.0347401,107610.0,107600.0,2.27129355]
[1748201569930,0.02544789,107610.0,107600.0,2.27129355]
[1748201577437,0.0458,107630.0,107620.0,0.21371386]
[1748201577643,0.04863119,107630.0,107620.0,1.07956234]
[1748201577855,0.05792193,107630.0,107620.0,1.07956234]
[1748201578063,0.04863119,107630.0,107620.0,1.07956234]
[1748201578268,0.28433497,107630.0,107620.0,0.29396826]
[1748201578478,0.28433497,107630.0,107620.0,1.08885412]
[1748201578681,0.28633497,107630.0,107620.0,1.10264286]
[1748201578823,0.0912221,107630.0,107620.0,1.10264286]
[1748201579025,0.0932221,107630.0,107620.0,1.10264286]
[1748201579807,0.28833489,107630.0,107620.0,1.10264286]
[1748201580009,0.1025131,107630.0,107620.0,1.10264286]
[1748201580636,0.1025131,107630.0,107620.0,0.32633994]
[1748201580815,0.1025131,107630.0,107620.0,1.10264286]
[1748201582345,0.0932221,107630.0,107620.0,1.10264286]
[1748201584635,0.06192194,107630.0,107620.0,1.10264286]
[1748201585107,0.10251294,107630.0,107620.0,0.32633994]
[1748201585328,0.10251294,107630.0,107620.0,1.10264286]
[1748201587423,0.28833473,107630.0,107620.0,1.09335152]
[1748201587636,0.10251294,107630.0,107620.0,1.10264286]
[1748201587839,0.28833473,107630.0,107620.0,1.10264286]
[1748201588045,0.28833473,107630.0,107620.0,0.79009166]
[1748201588257,0.28429462,107630.0,107620.0,0.79009166]
[1748201591309,0.28429462,107630.0,107620.0,0.01378874]
[1748201591530,0.28429462,107630.0,107620.0,0.79009166]
[1748201591668,0.28429462,107630.0,107620.0,0.77630292]
[1748201592853,0.28429462,107630.0,107620.0,0.78998347]
[1748201594607,0.28429462,107630.0,107620.0,0.98511448]
[1748201595719,0.28429462,107630.0,107620.0,0.97582253]
[1748201595923,0.28429462,107630.0,107620.0,0.96214198]
[1748201596131,0.28429462,107630.0,107620.0,0.97143384]
[1748201596333,0.27500379,107630.0,107620.0,0.97143384]
[1748201596968,0.42352379,107630.0,107620.0,0.98072562]
[1748201601142,0.42352379,107630.0,107620.0,0.99001731]
[1748201604248,0.42352379,107630.0,107620.0,0.99930891]
[1748201605273,0.58500379,107630.0,107620.0,0.99930891]
[1748201606183,0.58500379,107630.0,107620.0,1.02928298]
[1748201607707,0.58500379,107630.0,107620.0,1.0385745]
[1748201609251,0.58500379,107630.0,107620.0,1.02928298]
[1748201613344,0.58500379,107630.0,107620.0,0.81353385]
[1748201613762,0.58500379,107630.0,107620.0,0.80424225]
[1748201613917,0.58500379,107630.0,107620.0,0.79495056]
[1748201614443,0.57571279,107630.0,107620.0,1.00140791]
[1748201615572,0.57571279,107630.0,107620.0,0.99211605]
[1748201615833,0.57571279,107630.0,107620.0,0.80627699]
[1748201619560,0.00929307,107600.0,107590.0,0.37520393]
[1748201619779,0.00929307,107600.0,107590.0,0.49262049]
[1748201619976,0.00929307,107600.0,107590.0,0.51890722]
[1748201620206,0.00929307,107600.0,107590.0,0.85890722]
[1748201620418,0.00929307,107600.0,107590.0,0.86820141]
[1748201620620,0.00929307,107600.0,107590.0,1.64650433]
[1748201620874,0.00929307,107600.0,107590.0,1.66275807]
[1748201621086,0.20445983,107600.0,107590.0,1.66275807]
[1748201621275,0.21375325,107600.0,107590.0,0.88645515]
[1748201621512,0.02787921,107600.0,107590.0,1.66275807]
[1748201621997,0.02787921,107600.0,107590.0,1.51423807]
[1748201623173,0.21375281,107600.0,107590.0,0.7322296]
[1748201623409,0.22304623,107600.0,107590.0,1.50853252]
[1748201623627,0.20446052,107600.0,107590.0,0.03028673]
[1748201623840,0.20446052,107600.0,107590.0,0.80658965]
[1748201624066,0.21946052,107600.0,107590.0,1.14658965]
[1748201625061,0.21946052,107600.0,107590.0,1.14258965]
[1748201625461,0.2101671,107600.0,107590.0,1.14258965]
[1748201625868,0.24190795,107600.0,107590.0,1.14258965]
[1748201626167,0.24290795,107600.0,107590.0,1.14258965]
[1748201626588,0.24290795,107600.0,107590.0,0.93543193]